bitfinex-derivatives/quotes_BTCF0:USTF0_20241005
["timestamp","ask_amount","ask_price","bid_price","bid_amount"]
[1728129426439,0.28615848,62222.0,62221.0,0.0853911]
[1728129426952,0.28377817,62222.0,62221.0,0.0853911]
[1728129428754,0.28377817,62222.0,62221.0,0.30465511]
[1728129428755,0.12457,62222.0,62221.0,0.30465511]
[1728129431554,0.12457,62222.0,62221.0,0.30469895]
[1728129433251,0.12457,62222.0,62221.0,0.18544205]
[1728129435748,0.17013328,62222.0,62221.0,0.0853911]
[1728129439461,0.22638028,62222.0,62221.0,0.0853911]
[1728129443758,0.180817,62222.0,62221.0,0.18562128]
[1728129443958,0.180817,62222.0,62221.0,0.28203342]
[1728129444347,0.180817,62222.0,62221.0,0.18562128]
[1728129444554,0.180817,62222.0,62221.0,0.28207848]
[1728129446057,0.180817,62222.0,62221.0,0.28207992]
[1728129447763,0.180817,62222.0,62221.0,0.22583192]
[1728129447965,0.178247,62222.0,62221.0,0.22583192]
[1728129455862,0.178247,62222.0,62221.0,0.22592263]
[1728129458770,0.27641428,62222.0,62221.0,0.0291431]
[1728129458965,0.22016728,62222.0,62219.0,0.3608]
[1728129459165,0.15441628,62221.0,62219.0,0.3608]
[1728129459365,0.15441628,62220.0,62219.0,0.3608]
[1728129460564,0.15441654,62220.0,62219.0,0.38960443]
[1728129461862,0.15641654,62220.0,62219.0,0.38960443]
[1728129464269,0.27641654,62220.0,62219.0,0.38960443]
[1728129464777,0.27641654,62220.0,62219.0,0.02880443]
[1728129464971,0.27641654,62220.0,62218.0,0.3608]
[1728129465168,0.09816754,62219.0,62218.0,0.3608]
[1728129465475,0.09811689,62219.0,62218.0,0.3608]
[1728129465767,0.178249,62220.0,62218.0,0.5808093]
[1728129465975,0.178249,62220.0,62219.0,0.2200093]
[1728129466173,0.058249,62220.0,62219.0,0.2200093]
[1728129466377,0.178249,62220.0,62219.0,0.2200093]
[1728129466579,0.177249,62220.0,62219.0,0.2200093]
[1728129467172,0.176249,62220.0,62219.0,0.2200093]
[1728129467372,0.177249,62220.0,62219.0,0.2200093]
[1728129467972,0.178249,62220.0,62219.0,0.2200093]
[1728129470276,0.178249,62220.0,62219.0,0.2200169]
[1728129473772,0.27610274,62220.0,62218.0,0.3608]
[1728129473971,0.10153071,62219.0,62218.0,0.3608]
[1728129474172,0.15409157,62219.0,62218.0,0.3608]
[1728129475676,0.15509157,62219.0,62218.0,0.3608]
[1728129476266,0.15509157,62219.0,62216.0,0.08471487]
[1728129476479,0.12,62217.0,62216.0,0.08471487]
[1728129476674,0.16528071,62217.0,62216.0,0.08471487]
[1728129476982,0.16528071,62217.0,62216.0,0.44551487]
[1728129477578,0.16528071,62217.0,62216.0,0.08471487]
[1728129477775,0.22153171,62217.0,62216.0,0.38926287]
[1728129478777,0.22253171,62217.0,62216.0,0.38926287]
[1728129478978,0.22353171,62217.0,62216.0,0.38926287]
[1728129480789,0.178251,62217.0,62216.0,0.60951326]
[1728129482483,0.178251,62217.0,62216.0,0.12894382]
[1728129483687,0.178251,62217.0,62216.0,0.24869867]
[1728129485089,0.178251,62217.0,62216.0,0.48974382]
[1728129488291,0.178251,62217.0,62216.0,0.12894382]
[1728129488481,0.178251,62217.0,62216.0,0.48974382]
[1728129488985,0.178251,62217.0,62216.0,0.02846287]
[1728129488986,0.22345781,62217.0,62216.0,0.02846287]
[1728129489187,0.22345781,62217.0,62216.0,0.3608]
[1728129492990,0.22345329,62217.0,62216.0,0.3608]
[1728129495883,0.178251,62217.0,62216.0,0.46123117]
[1728129497687,0.178251,62217.0,62216.0,0.44115633]
[1728129497994,0.178251,62217.0,62216.0,0.3608]
[1728129500091,0.180821,62217.0,62216.0,0.3608]
[1728129502897,0.056252,62216.0,62215.0,0.08035633]
[1728129503201,0.056252,62216.0,62215.0,0.18100077]
[1728129504197,0.057252,62216.0,62215.0,0.18100077]
[1728129504400,0.057252,62216.0,62215.0,0.18100974]
[1728129505903,0.058252,62216.0,62215.0,0.18100974]
[1728129507698,0.058252,62216.0,62215.0,0.18101743]
[1728129510906,0.15553648,62216.0,62214.0,0.02884662]
[1728129511119,0.09728448,62215.0,62212.0,0.3608]
[1728129511407,0.058252,62216.0,62212.0,0.3608]
[1728129511408,0.12,62213.0,62212.0,0.3608]
[1728129511605,0.21728448,62213.0,62212.0,0.3608]
[1728129514410,0.27353948,62213.0,62211.0,0.08481783]
[1728129514716,0.09728448,62212.0,62211.0,0.08481783]
[1728129515004,0.09728448,62212.0,62211.0,0.44561783]
[1728129515211,0.04501729,62212.0,62211.0,0.44561783]
[1728129515804,0.04501729,62212.0,62211.0,0.08481783]
[1728129516104,0.04501729,62212.0,62211.0,0.44561783]
[1728129517312,0.04501729,62212.0,62211.0,0.08481783]
[1728129517514,0.04601729,62212.0,62211.0,0.44561783]
[1728129518017,0.001,62212.0,62211.0,0.66627087]
[1728129518716,0.001,62212.0,62211.0,0.30547087]
[1728129519306,0.001,62212.0,62211.0,0.66627087]
[1728129520008,0.001,62212.0,62211.0,0.30547087]
[1728129520210,0.001,62212.0,62211.0,0.66627087]
[1728129522015,0.001,62212.0,62211.0,0.30547087]
[1728129522207,0.001,62212.0,62211.0,0.66629338]
[1728129522717,0.001,62212.0,62211.0,0.30549338]
[1728129522915,0.001,62212.0,62211.0,0.66629338]
[1728129524423,0.001,62212.0,62211.0,0.49003674]
[1728129525913,0.04589401,62212.0,62211.0,0.38936183]
[1728129531630,0.04489401,62212.0,62211.0,0.38936183]
[1728129531829,0.10212412,62212.0,62211.0,0.38936183]
[1728129533034,0.057256,62212.0,62211.0,0.38936183]
[1728129533335,0.057256,62212.0,62211.0,0.46974298]
[1728129534336,0.057256,62212.0,62211.0,0.57049206]
[1728129535040,0.057256,62212.0,62211.0,0.62674906]
[1728129535540,0.057256,62212.0,62211.0,0.52599998]
[1728129536136,0.057256,62212.0,62211.0,0.02856183]
[1728129536336,0.057256,62212.0,62208.0,0.08038115]
[1728129536337,0.001,62212.0,62208.0,0.08038115]
[1728129536542,0.056259,62209.0,62208.0,0.08038115]
[1728129537834,0.056259,62209.0,62208.0,0.18123868]
[1728129538033,0.056259,62209.0,62208.0,0.13664115]
[1728129538749,0.057259,62209.0,62208.0,0.13664115]
[1728129540735,0.057259,62209.0,62208.0,0.05626]
[1728129541131,0.057259,62209.0,62208.0,0.15711444]
[1728129541645,0.057259,62209.0,62208.0,0.25357588]
[1728129544947,0.057259,62209.0,62208.0,0.25357259]
[1728129547938,0.15387962,62209.0,62208.0,0.05626]
[1728129553645,0.09862062,62209.0,62208.0,0.05626]
[1728129556042,0.002,62209.0,62208.0,0.27710527]
[1728129559553,0.002,62209.0,62208.0,0.2772942]
[1728129563055,0.002,62209.0,62208.0,0.05626]
[1728129563056,0.04679903,62209.0,62208.0,0.05626]
[1728129564048,0.09881258,62209.0,62208.0,0.05626]
[1728129564459,0.002,62209.0,62208.0,0.05626]
[1728129565252,0.0467917,62209.0,62208.0,0.05626]
[1728129566459,0.0988024,62209.0,62208.0,0.05626]
[1728129566659,0.0988024,62209.0,62208.0,0.41706]
[1728129567160,0.0467917,62209.0,62208.0,0.41706]
[1728129567368,0.002,62209.0,62208.0,0.41706]
[1728129572060,0.002,62209.0,62208.0,0.63803901]
[1728129573655,0.00457,62209.0,62208.0,0.63803901]
[1728129575550,0.00457,62209.0,62208.0,0.41706]
[1728129577065,0.00457,62209.0,62208.0,0.63797945]
[1728129578766,0.00457,62209.0,62208.0,0.41706]
[1728129579767,0.04928674,62209.0,62208.0,0.41706]
[1728129580465,0.04931637,62209.0,62208.0,0.41706]
[1728129581481,0.00457,62209.0,62208.0,0.41706]
[1728129585782,0.0112,62213.0,62212.0,0.056256]
[1728129585976,0.0112,62216.0,62214.0,0.056254]
[1728129586181,0.12,62218.0,62215.0,0.10076828]
[1728129586376,0.12,62218.0,62216.0,0.19717228]
[1728129586589,0.12,62218.0,62217.0,0.10076828]
[1728129588283,0.121,62218.0,62217.0,0.10076828]
[1728129588988,0.122,62218.0,62217.0,0.10176828]
[1728129590076,0.122,62218.0,62217.0,0.10174466]
[1728129593788,0.122,62218.0,62217.0,0.001]
[1728129596887,0.122,62218.0,62217.0,0.057251]
[1728129600790,0.21873375,62218.0,62217.0,0.057251]
[1728129602786,0.16676245,62218.0,62217.0,0.057251]
[1728129602991,0.09873955,62218.0,62217.0,0.057251]
[1728129604092,0.09873955,62218.0,62217.0,0.177251]
[1728129604289,0.04676245,62218.0,62217.0,0.177251]
[1728129605589,0.0037,62221.0,62217.0,0.121]
[1728129605789,0.0325,62227.0,62223.0,0.056246]
[1728129605790,0.0037,62224.0,62223.0,0.056246]
[1728129605994,0.0975142,62224.0,62223.0,0.537046]
[1728129606188,0.0451191,62224.0,62223.0,0.537046]
[1728129606389,0.03,62228.0,62223.0,0.4808]
[1728129606390,0.0451191,62226.0,62223.0,0.4808]
[1728129606695,0.0451191,62225.0,62224.0,0.056245]
[1728129606891,0.0451191,62225.0,62224.0,0.12]
[1728129607193,0.03,62228.0,62226.0,0.056243]
[1728129607392,0.04527147,62227.0,62226.0,0.056243]
[1728129607700,0.03,62228.0,62226.0,0.12]
[1728129607896,0.03,62228.0,62227.0,0.056242]
[1728129608691,0.07526094,62228.0,62227.0,0.056242]
[1728129608993,0.03,62228.0,62227.0,0.056242]
[1728129609593,0.151,62228.0,62227.0,0.056242]
[1728129610202,0.151,62228.0,62227.0,0.417042]
[1728129610493,0.151,62228.0,62227.0,0.51162874]
[1728129610699,0.151,62228.0,62227.0,0.4474579]
[1728129611596,0.151,62228.0,62227.0,0.51162036]
[1728129612505,0.151,62228.0,62227.0,0.15082036]
[1728129612702,0.151,62228.0,62227.0,0.51162036]
[1728129613295,0.151,62228.0,62227.0,0.15082036]
[1728129613493,0.151,62228.0,62227.0,0.51162036]
[1728129613494,0.001,62228.0,62227.0,0.51162036]
[1728129615596,0.001,62228.0,62227.0,0.4474579]
[1728129616413,0.09891152,62228.0,62227.0,0.4474579]
[1728129617596,0.04630745,62228.0,62227.0,0.4474579]
[1728129620907,0.0037,62230.0,62227.0,0.4238159]
[1728129621208,0.0037,62232.0,62231.0,0.056239]
[1728129621209,0.0075,62232.0,62231.0,0.056239]
[1728129621408,0.0075,62235.0,62234.0,0.056236]
[1728129621611,0.0305,62236.0,62234.0,0.056236]
[1728129621910,0.05267734,62235.0,62234.0,0.056236]
[1728129623803,0.0385,62236.0,62234.0,0.056236]
[1728129624510,0.008,62235.0,62234.0,0.056236]
[1728129624713,0.014,62235.0,62234.0,0.056236]
[1728129625207,0.0305,62236.0,62234.0,0.056236]
[1728129625412,0.0445,62236.0,62234.0,0.056236]
[1728129626206,0.0445,62236.0,62235.0,0.056235]
[1728129626605,0.0365,62236.0,62235.0,0.056235]
[1728129626809,0.0305,62236.0,62235.0,0.056235]
[1728129628012,0.0375,62236.0,62235.0,0.056235]
[1728129628213,0.0465,62236.0,62235.0,0.056235]
[1728129629519,0.0465,62236.0,62235.0,0.08577714]
[1728129630109,0.0465,62236.0,62235.0,0.44657714]
[1728129630310,0.016,62236.0,62235.0,0.44657714]
[1728129631710,0.007,62236.0,62235.0,0.44657714]
[1728129632014,0.06042079,62236.0,62235.0,0.44657714]
[1728129632217,0.05942079,62236.0,62235.0,0.44657714]
[1728129633524,0.014,62236.0,62235.0,0.44657714]
[1728129635013,0.0074,62240.0,62239.0,0.056232]
[1728129635223,0.0037,62244.0,62243.0,0.056228]
[1728129635525,0.0037,62247.0,62245.0,0.056226]
[1728129635714,0.0326,62246.0,62245.0,0.056226]
[1728129637716,0.0466,62246.0,62245.0,0.057226]
[1728129638118,0.20508178,62246.0,62243.0,0.0968512]
[1728129638317,0.21908178,62246.0,62245.0,0.001]
[1728129638518,0.21908178,62246.0,62245.0,0.057226]
[1728129639017,0.0606,62246.0,62245.0,0.057226]
[1728129639218,0.0606,62246.0,62245.0,0.056226]
[1728129640525,0.0466,62246.0,62245.0,0.08466863]
[1728129640727,0.0596,62246.0,62245.0,0.08466863]
[1728129641028,0.0596,62246.0,62245.0,0.08566863]
[1728129641233,0.0596,62246.0,62245.0,0.08666863]
[1728129641234,0.0606,62246.0,62245.0,0.08666863]
[1728129642129,0.028,62246.0,62245.0,0.44746863]
[1728129646332,0.07274632,62246.0,62245.0,0.44746863]
[1728129646926,0.0361,62250.0,62245.0,0.39124263]
[1728129647125,0.04477403,62249.0,62248.0,0.056223]
[1728129647623,0.0324,62250.0,62246.0,0.0037]
[1728129647824,0.0324,62250.0,62249.0,0.12]
[1728129648027,0.00241052,62251.0,62250.0,0.056222]
[1728129648228,0.04735719,62251.0,62250.0,0.056222]
[1728129649227,0.04735719,62251.0,62250.0,0.417022]
[1728129650523,0.04735719,62251.0,62250.0,0.418022]
[1728129650825,0.04735719,62251.0,62250.0,0.419022]
[1728129651017,0.00241052,62251.0,62250.0,0.419022]
[1728129652422,0.00241052,62251.0,62250.0,0.058222]
[1728129652623,0.00241052,62251.0,62250.0,0.419022]
[1728129656741,0.00241052,62251.0,62250.0,0.48323169]
[1728129657528,0.00241052,62251.0,62250.0,0.419022]
[1728129660638,0.00241052,62251.0,62250.0,0.599694]
[1728129661132,0.00241052,62251.0,62250.0,0.48317024]
[1728129662224,0.00241052,62251.0,62250.0,0.12237024]
[1728129662427,0.00241052,62251.0,62250.0,0.48317024]
[1728129663333,0.0314,62253.0,62252.0,0.05622]
[1728129663838,0.0314,62253.0,62252.0,0.17622]
[1728129664545,0.0384,62253.0,62252.0,0.17722]
[1728129664835,0.0384,62253.0,62252.0,0.24136824]
[1728129665042,0.0384,62253.0,62252.0,0.17722]
[1728129665430,0.0384,62253.0,62252.0,0.2413624]
[1728129665638,0.0414,62253.0,62252.0,0.2423624]
[1728129665839,0.0414,62253.0,62252.0,0.17822]
[1728129666140,0.0414,62253.0,62252.0,0.20724908]
[1728129666444,0.0384,62253.0,62252.0,0.20624908]
[1728129666636,0.0334,62253.0,62252.0,0.20524908]
[1728129667440,0.0334,62253.0,62252.0,0.26938993]
[1728129667834,0.002,62253.0,62252.0,0.26938993]
[1728129668034,0.002,62253.0,62252.0,0.20524908]
[1728129668242,0.002,62253.0,62252.0,0.26939108]
[1728129668543,0.002,62253.0,62252.0,0.20524908]
[1728129669140,0.14623726,62253.0,62252.0,0.20524908]
[1728129669337,0.09936245,62253.0,62252.0,0.20524908]
[1728129674543,0.15861922,62253.0,62252.0,0.14902908]
[1728129674742,0.31912636,62253.0,62252.0,0.14902908]
[1728129675244,0.15863888,62253.0,62252.0,0.14902908]
[1728129675441,0.15863888,62253.0,62252.0,0.20524908]
[1728129675633,0.31912636,62253.0,62252.0,0.20524908]
[1728129676035,0.15863888,62253.0,62252.0,0.20524908]
[1728129676231,0.002,62253.0,62252.0,0.30638577]
[1728129679236,0.002,62253.0,62252.0,0.30633926]
[1728129683348,0.002,62253.0,62252.0,0.4026193]
[1728129684048,0.00457,62253.0,62252.0,0.40264386]
[1728129684244,0.00457,62253.0,62252.0,0.2694355]
[1728129685149,0.00457,62253.0,62252.0,0.20524908]
[1728129685648,0.00457,62253.0,62252.0,0.56604908]
[1728129687350,0.00457,62253.0,62252.0,0.20524908]
[1728129687543,0.00457,62253.0,62252.0,0.56604908]
[1728129691249,0.0486899,62253.0,62252.0,0.56604908]
[1728129691449,0.00457,62253.0,62252.0,0.56604908]
[1728129691839,0.09991518,62253.0,62252.0,0.56604908]
[1728129694945,0.0486899,62253.0,62252.0,0.56604908]
[1728129695341,0.15834245,62253.0,62252.0,0.56604908]
[1728129695746,0.15834245,62253.0,62252.0,0.48569047]
[1728129695948,0.20917738,62253.0,62252.0,0.48569047]
[1728129696143,0.31882993,62253.0,62252.0,0.48569047]
[1728129698053,0.31648207,62253.0,62252.0,0.48569047]
[1728129699050,0.31648207,62253.0,62252.0,0.51422606]
[1728129699249,0.31648207,62253.0,62252.0,0.73747886]
[1728129699250,0.00457,62253.0,62252.0,0.73747886]
[1728129700439,0.00457,62253.0,62252.0,0.61608008]
[1728129700643,0.00457,62253.0,62252.0,0.61609197]
[1728129702055,0.00457,62253.0,62252.0,0.25529197]
[1728129702259,0.00457,62253.0,62252.0,0.61609197]
[1728129702953,0.00457,62253.0,62252.0,0.61609399]
[1728129703161,0.00457,62253.0,62252.0,0.25529399]
[1728129703358,0.00457,62253.0,62252.0,0.73754071]
[1728129703662,0.00457,62253.0,62252.0,0.78887024]
[1728129703960,0.00457,62253.0,62252.0,0.66742352]
[1728129704855,0.00457,62253.0,62252.0,0.30662352]
[1728129705160,0.00457,62253.0,62252.0,0.66742352]
[1728129705456,0.00457,62253.0,62252.0,0.58756504]
[1728129705457,0.12457,62253.0,62252.0,0.58756504]
[1728129705857,0.12457,62253.0,62252.0,0.49120352]
[1728129705858,0.15597,62253.0,62252.0,0.49120352]
[1728129706262,0.42433487,62253.0,62252.0,0.38933559]
[1728129706450,0.4652088,62253.0,62252.0,0.38933559]
[1728129707364,0.30472132,62253.0,62252.0,0.38933559]
[1728129708063,0.30472132,62253.0,62252.0,0.30897382]
[1728129708260,0.30472132,62253.0,62252.0,0.3608]
[1728129711262,0.30472132,62253.0,62252.0,0.39043891]
[1728129711563,0.30472132,62253.0,62252.0,0.44665891]
[1728129713266,0.1534,62253.0,62252.0,0.54923378]
[1728129714868,0.0334,62253.0,62252.0,0.54923378]
[1728129717469,0.0334,62253.0,62252.0,0.54923014]
[1728129720974,0.0334,62253.0,62252.0,0.54922343]
[1728129721373,0.07857396,62253.0,62252.0,0.08585891]
[1728129721568,0.18436559,62253.0,62252.0,0.08585891]
[1728129723274,0.18436559,62253.0,62252.0,0.20585891]
[1728129725476,0.18173268,62253.0,62252.0,0.20585891]
[1728129728273,0.03597,62253.0,62252.0,0.30908788]
[1728129730082,0.03597,62253.0,62252.0,0.18909564]
[1728129733478,0.03597,62253.0,62252.0,0.28545716]
[1728129736275,0.12646088,62253.0,62252.0,0.08585891]
[1728129738974,0.12646088,62253.0,62252.0,0.02963891]
[1728129739176,0.12646088,62253.0,62251.0,0.3608]
[1728129739177,0.30267988,62253.0,62251.0,0.3608]
[1728129739483,0.09049088,62252.0,62251.0,0.38980533]
[1728129739679,0.09046188,62252.0,62251.0,0.38980533]
[1728129740373,0.09046188,62252.0,62251.0,0.39080533]
[1728129741386,0.09146188,62252.0,62251.0,0.44702633]
[1728129743283,0.001,62252.0,62251.0,0.55040234]
[1728129744585,0.001,62252.0,62251.0,0.5503785]
[1728129749494,0.001,62252.0,62251.0,0.55038935]
[1728129754785,0.001,62252.0,62251.0,0.18958935]
[1728129754998,0.001,62252.0,62251.0,0.26985522]
[1728129756187,0.001,62252.0,62251.0,0.18958935]
[1728129756393,0.001,62252.0,62251.0,0.26985447]
[1728129757899,0.00357,62252.0,62251.0,0.26985447]
[1728129758109,0.00357,62252.0,62251.0,0.26987832]
[1728129758304,0.00357,62252.0,62251.0,0.08622633]
[1728129758305,0.09354361,62252.0,62251.0,0.08622633]
[1728129764002,0.09362939,62252.0,62251.0,0.08622633]
[1728129766504,0.09362939,62252.0,62251.0,0.18960488]
[1728129766505,0.00357,62252.0,62251.0,0.18960488]
[1728129766894,0.00357,62252.0,62251.0,0.26988326]
[1728129767097,0.00357,62252.0,62251.0,0.18960488]
[1728129773510,0.00357,62252.0,62251.0,0.08622633]
[1728129776619,0.05979,62252.0,62251.0,0.08622633]
[1728129780015,0.05722,62252.0,62251.0,0.08622633]
[1728129781521,0.14728072,62252.0,62251.0,0.08622633]
[1728129788422,0.05722,62252.0,62251.0,0.28598668]
[1728129789119,0.05722,62252.0,62251.0,0.31294911]
[1728129794336,0.05979,62252.0,62251.0,0.31294911]
[1728129796543,0.20493756,62252.0,62251.0,0.08622633]
[1728129797940,0.14984398,62252.0,62251.0,0.08622633]
[1728129803540,0.05979,62252.0,62251.0,0.18967764]
[1728129809343,0.05979,62252.0,62251.0,0.28603194]
[1728129809739,0.05979,62252.0,62251.0,0.22981094]
[1728129809941,0.05979,62252.0,62251.0,0.13345664]
[1728129810140,0.05979,62252.0,62251.0,0.22981094]
[1728129810438,0.05979,62252.0,62251.0,0.13345664]
[1728129811438,0.05979,62252.0,62251.0,0.03000533]
[1728129811439,0.14962159,62252.0,62251.0,0.03000533]
[1728129815351,0.14937674,62252.0,62251.0,0.03000533]
[1728129816547,0.14680674,62252.0,62251.0,0.03000533]
[1728129818153,0.05722,62252.0,62251.0,0.03000533]
[1728129818452,0.14692421,62252.0,62251.0,0.03000533]
[1728129818766,0.05722,62252.0,62251.0,0.13354572]
[1728129820348,0.05722,62252.0,62251.0,0.13361066]
[1728129825252,0.05722,62252.0,62251.0,0.1335976]
[1728129826550,0.14679086,62252.0,62251.0,0.03000533]
[1728129831355,0.14936086,62252.0,62251.0,0.03000533]
[1728129833554,0.05979,62252.0,62251.0,0.13354649]
[1728129841673,0.00357,62252.0,62251.0,0.13354649]
[1728129841865,0.0074,62258.0,62251.0,0.13354649]
[1728129842065,0.0074,62258.0,62257.0,0.056215]
[1728129842271,0.12,62260.0,62257.0,0.056215]
[1728129842469,0.12,62260.0,62257.0,0.08026247]
[1728129842665,0.0309,62261.0,62259.0,0.176213]
[1728129843170,0.0309,62261.0,62260.0,0.056213]
[1728129844165,0.12,62262.0,62260.0,0.056213]
[1728129844366,0.12,62262.0,62261.0,0.06416689]
[1728129845171,0.056211,62263.0,62261.0,0.12037789]
[1728129845371,0.0037,62265.0,62261.0,0.18416689]
[1728129845566,0.0037,62265.0,62264.0,0.056209]
[1728129845883,0.12,62265.0,62264.0,0.12037589]
[1728129847375,0.122,62265.0,62264.0,0.057209]
[1728129847776,0.127,62265.0,62264.0,0.058209]
[1728129848767,0.21673151,62265.0,62264.0,0.058209]
[1728129851476,0.21673151,62265.0,62262.0,0.12]
[1728129851671,0.14436969,62263.0,62262.0,0.12]
[1728129851867,0.28897919,62263.0,62262.0,0.12]
[1728129852066,0.28897919,62263.0,62262.0,0.176211]
[1728129852376,0.19257896,62263.0,62262.0,0.176211]
[1728129852575,0.24575753,62263.0,62262.0,0.176211]
[1728129852776,0.28658801,62263.0,62262.0,0.177211]
[1728129853175,0.24575753,62263.0,62262.0,0.177211]
[1728129853377,0.14436969,62263.0,62262.0,0.177211]
[1728129853582,0.14421832,62263.0,62262.0,0.177211]
[1728129854075,0.15021832,62263.0,62262.0,0.178211]
[1728129854981,0.09623659,62263.0,62262.0,0.178211]
[1728129856169,0.04883048,62263.0,62262.0,0.178211]
[1728129856389,0.15021224,62263.0,62262.0,0.178211]
[1728129856775,0.008,62263.0,62262.0,0.24237789]
[1728129863792,0.008,62263.0,62262.0,0.10625487]
[1728129864284,0.008,62263.0,62262.0,0.058211]
[1728129864783,0.008,62263.0,62262.0,0.178211]
[1728129865488,0.008,62263.0,62262.0,0.24237789]
[1728129867188,0.008,62263.0,62262.0,0.178211]
[1728129868690,0.01057,62263.0,62262.0,0.178211]
[1728129871886,0.05141828,62263.0,62262.0,0.178211]
[1728129872089,0.09884506,62263.0,62262.0,0.178211]
[1728129873908,0.15285903,62263.0,62262.0,0.178211]
[1728129874299,0.29722872,62263.0,62262.0,0.178211]
[1728129874504,0.15285903,62263.0,62262.0,0.178211]
[1728129874801,0.29722872,62263.0,62262.0,0.178211]
[1728129874990,0.15285903,62263.0,62262.0,0.178211]
[1728129876095,0.15285903,62263.0,62262.0,0.539011]
[1728129878400,0.15278733,62263.0,62262.0,0.539011]
[1728129878809,0.01057,62263.0,62262.0,0.72315679]
[1728129880495,0.01057,62263.0,62262.0,0.64289432]
[1728129881105,0.01057,62263.0,62262.0,0.64300441]
[1728129882604,0.01057,62263.0,62262.0,0.52300441]
[1728129882813,0.01057,62263.0,62262.0,0.64300441]
[1728129884305,0.01057,62263.0,62262.0,0.7231462]
[1728129885011,0.01057,62263.0,62262.0,0.64300441]
[1728129886210,0.01057,62263.0,62262.0,0.72314357]
[1728129886802,0.01057,62263.0,62262.0,0.539011]
[1728129887609,0.05140374,62263.0,62262.0,0.539011]
[1728129891204,0.04883374,62263.0,62262.0,0.539011]
[1728129892504,0.0962083,62263.0,62262.0,0.539011]
[1728129893924,0.008,62263.0,62262.0,0.539011]
[1728129901821,0.06194879,62263.0,62262.0,0.539011]
[1728129902023,0.10932597,62263.0,62262.0,0.539011]
[1728129902224,0.15013154,62263.0,62262.0,0.539011]
[1728129905228,0.15270154,62263.0,62262.0,0.539011]
[1728129906115,0.05137557,62263.0,62262.0,0.539011]
[1728129907521,0.04737557,62263.0,62262.0,0.538011]
[1728129907721,0.0037,62269.0,62262.0,1.619851]
[1728129908027,0.0037,62269.0,62267.0,0.056206]
[1728129908028,0.08847259,62268.0,62267.0,0.056206]
[1728129908223,0.04716126,62268.0,62265.0,0.0112]
[1728129908527,0.04716126,62267.0,62266.0,0.056207]
[1728129908730,0.04716126,62267.0,62266.0,0.067407]
[1728129908924,0.0313,62272.0,62271.0,0.056203]
[1728129909231,0.0313,62272.0,62271.0,0.37627357]
[1728129909426,0.0313,62272.0,62271.0,0.28017279]
[1728129910019,0.0313,62272.0,62271.0,0.28217279]
[1728129912927,0.0313,62272.0,62271.0,0.28210762]
[1728129913637,0.0313,62272.0,62271.0,0.31070979]
[1728129915935,0.0313,62272.0,62271.0,0.20680517]
[1728129916232,0.0313,62272.0,62271.0,0.56760517]
[1728129923132,0.0305,62273.0,62272.0,0.056202]
[1728129924144,0.0305,62273.0,62272.0,0.15999159]
[1728129924330,0.0074,62277.0,62272.0,0.15999159]
[1728129924331,0.0074,62277.0,62272.0,0.10378959]
[1728129924531,0.0074,62277.0,62276.0,0.176198]
[1728129924735,0.0337,62279.0,62277.0,0.056197]
[1728129924736,0.03,62279.0,62277.0,0.056197]
[1728129926449,0.0044091,62278.0,62277.0,0.056197]
[1728129927939,0.0064091,62278.0,62277.0,0.056197]
[1728129929243,0.0064091,62278.0,62277.0,0.23986334]
[1728129929442,0.004,62278.0,62277.0,0.23986334]
[1728129929638,0.004,62278.0,62277.0,0.13619146]
[1728129929946,0.004,62278.0,62277.0,0.15986764]
[1728129930935,0.004,62278.0,62277.0,0.056197]
[1728129931939,0.003,62278.0,62277.0,0.056197]
[1728129934541,0.003,62278.0,62277.0,0.13619752]
[1728129934940,0.003,62278.0,62277.0,0.056197]
[1728129935647,0.003,62278.0,62277.0,0.23987559]
[1728129936541,0.002,62278.0,62277.0,0.23987734]
[1728129937750,0.0353,62281.0,62277.0,0.18368034]
[1728129938040,0.0353,62281.0,62280.0,0.176195]
[1728129938248,0.0316,62281.0,62280.0,0.176195]
[1728129938937,0.07453534,62281.0,62280.0,0.176195]
[1728129939145,0.07453534,62281.0,62277.0,0.0112]
[1728129939146,0.17818353,62281.0,62277.0,0.0112]
[1728129939453,0.14440534,62278.0,62277.0,0.067397]
[1728129939642,0.08846318,62279.0,62276.0,0.3608]
[1728129939843,0.08846318,62278.0,62277.0,0.056197]
[1728129940042,0.09083318,62278.0,62277.0,0.056197]
[1728129940245,0.09083318,62278.0,62277.0,0.176197]
[1728129941948,0.09283318,62278.0,62277.0,0.176197]
[1728129945454,0.09283318,62278.0,62277.0,0.536997]
[1728129946047,0.00437,62278.0,62277.0,0.64121862]
[1728129946554,0.00437,62278.0,62277.0,0.64121773]
[1728129947556,0.00437,62278.0,62277.0,0.76544941]
[1728129948655,0.00237,62278.0,62277.0,0.76544941]
[1728129948858,0.00237,62278.0,62277.0,0.76744941]
[1728129949351,0.00237,62278.0,62277.0,0.76644941]
[1728129949558,0.00237,62278.0,62277.0,0.76844941]
[1728129950456,0.00237,62278.0,62277.0,0.76744941]
[1728129950653,0.00237,62278.0,62277.0,0.64421773]
[1728129951252,0.00237,62278.0,62277.0,0.64424472]
[1728129951452,0.00237,62278.0,62277.0,0.76851271]
[1728129951751,0.00237,62278.0,62277.0,0.64424472]
[1728129952455,0.00237,62278.0,62277.0,0.76851919]
[1728129953162,0.00237,62278.0,62277.0,0.76854092]
[1728129954051,0.00237,62278.0,62277.0,0.539997]
[1728129954451,0.00237,62278.0,62277.0,0.62009658]
[1728129954857,0.00237,62278.0,62277.0,0.7243771]
[1728129955054,0.00237,62278.0,62277.0,0.62009658]
[1728129955255,0.00237,62278.0,62277.0,0.72437393]
[1728129955663,0.00237,62278.0,62277.0,0.36357393]
[1728129955863,0.00237,62278.0,62277.0,0.72437393]
[1728129956064,0.00237,62278.0,62277.0,0.72438693]
[1728129959954,0.0316,62281.0,62277.0,0.66818993]
[1728129960155,0.0316,62281.0,62280.0,0.176195]
[1728129960567,0.0316,62281.0,62280.0,0.056195]
[1728129960869,0.0316,62281.0,62280.0,0.176195]
[1728129961561,0.11877826,62281.0,62280.0,0.176195]
[1728129961755,0.11977826,62281.0,62280.0,0.536995]